bitfinex-derivatives/quotes_ETHF0:USTF0_20240830
["timestamp","ask_amount","ask_price","bid_price","bid_amount"]
[1724981727421,0.75642,2524.1,2523.6,4.96619]
[1724981727609,0.3603,2524.1,2523.7,0.39618]
[1724981727912,0.3603,2524.1,2523.6,4.57595073]
[1724981728105,0.3603,2524.1,2523.6,0.00595073]
[1724981728301,0.39613,2524.0,2523.6,0.00595073]
[1724981728809,0.39616,2523.8,2523.7,40.8]
[1724981729008,0.3603,2524.1,2523.7,40.8]
[1724981729409,0.3962,2523.9,2523.7,40.8]
[1724981729719,0.3603,2524.1,2523.7,40.8]
[1724981730610,0.39617,2524.0,2523.7,40.8]
[1724981731114,0.75646,2524.1,2523.7,40.8]
[1724981731817,0.39617,2524.0,2523.7,40.8]
[1724981732019,0.39619,2523.9,2523.7,40.8]
[1724981732221,0.39618,2524.0,2523.7,40.8]
[1724981732721,0.3962,2523.8,2523.7,40.8]
[1724981732922,0.3962,2523.9,2523.7,40.8]
[1724981733813,0.3962,2523.8,2523.7,40.8]
[1724981734018,0.39619,2523.9,2523.7,40.8]
[1724981735713,0.3962,2523.8,2523.7,40.8]
[1724981736709,0.39619,2523.9,2523.7,40.8]
[1724981738028,3.60398,2524.0,2523.7,40.8]
[1724981738219,3.60398,2524.0,2523.7,41.19621]
[1724981738421,0.99014,2524.8,2523.7,41.19621]
[1724981738422,0.3594,2524.6,2524.3,0.39612]
[1724981738625,0.39607,2524.7,2524.4,4.57]
[1724981738921,4.94294921,2524.9,2524.6,0.39607]
[1724981739122,0.3859,2524.9,2524.8,4.57]
[1724981739522,3.5672,2525.2,2524.8,4.96604]
[1724981739523,3.96319,2525.2,2524.8,4.96604]
[1724981740627,3.2078,2525.2,2524.8,4.57]
[1724981740930,3.2078,2525.2,2525.1,4.57]
[1724981741522,3.2078,2525.2,2525.1,4.966]
[1724981741718,3.2078,2525.2,2524.9,0.00595073]
[1724981741918,0.39601,2525.1,2524.9,0.00595073]
[1724981742124,0.39601,2525.1,2525.0,40.8]
[1724981742330,3.60379,2525.2,2525.0,45.37]
[1724981742526,3.2078,2525.2,2525.0,45.37]
[1724981743430,3.2078,2525.9,2525.1,7.5646]
[1724981743727,3.2078,2526.3,2525.8,4.57]
[1724981744026,3.2078,2526.3,2526.1,4.57]
[1724981744725,3.2078,2526.3,2526.1,4.96583]
[1724981744927,0.39577,2526.6,2526.1,8.17363]
[1724981745123,3.2078,2526.8,2526.1,4.57593871]
[1724981745338,3.2078,2526.2,2526.1,0.00593871]
[1724981745629,4.16279202,2526.7,2526.6,0.39576]
[1724981745827,3.2078,2527.3,2526.6,4.57]
[1724981746029,3.2078,2527.3,2526.7,40.8]
[1724981746332,3.2078,2527.3,2527.0,4.57]
[1724981746726,0.39568,2527.2,2527.0,4.57]
[1724981746919,3.2078,2527.3,2527.0,4.57]
[1724981747431,0.39562,2527.6,2527.0,4.57]
[1724981747929,7.34064536,2527.8,2527.3,4.57]
[1724981748128,3.60343,2527.5,2527.0,4.57]
[1724981748338,0.39569,2527.1,2526.7,45.37]
[1724981748625,0.39568,2527.2,2526.7,45.37]
[1724981748828,0.39566,2527.3,2526.7,45.37]
[1724981749531,3.2078,2527.4,2527.0,4.57]
[1724981750030,3.6034,2527.7,2527.0,4.57]
[1724981750219,3.6034,2527.7,2527.0,4.96569]
[1724981750425,4.42443943,2527.8,2527.3,4.57]
[1724981750722,0.39558,2527.8,2527.3,4.57]
[1724981751119,3.2078,2527.7,2527.3,4.57]
[1724981751535,0.39561,2527.6,2527.0,5.3064]
[1724981751728,0.3956,2527.7,2527.3,4.57]
[1724981751934,0.39558,2527.8,2527.3,4.57]
[1724981752129,0.7409,2527.9,2527.3,4.57]
[1724981752130,1.13647,2527.9,2527.3,4.57]
[1724981752332,0.7409,2527.9,2527.3,4.57]
[1724981752635,0.3647,2527.9,2527.4,0.39563]
[1724981752823,0.76026,2527.9,2527.4,0.00593871]
[1724981753025,0.76026,2527.9,2527.4,0.40157871]
[1724981753530,0.3647,2527.9,2527.4,0.40157871]
[1724981753728,3.2078,2528.0,2527.6,4.57]
[1724981754633,0.39559,2527.8,2527.6,4.57]
[1724981754832,3.2078,2528.0,2527.6,4.57]
[1724981754833,0.39559,2527.7,2527.6,4.57]
[1724981755027,0.39559,2527.7,2527.4,0.00593871]
[1724981755229,7.1646,2527.7,2527.4,0.00593871]
[1724981755424,0.3632,2527.6,2527.4,0.00593871]
[1724981755630,0.39562,2527.5,2527.4,0.00593871]
[1724981755840,4.35242,2527.5,2527.4,0.00593871]
[1724981756032,5.34149,2527.5,2527.4,0.00593871]
[1724981756427,0.39576,2526.6,2526.5,0.3576]
[1724981756627,3.60348,2527.2,2526.5,0.3576]
[1724981756826,0.39568,2527.2,2526.9,4.57]
[1724981757132,0.39566,2527.3,2526.9,45.37]
[1724981757338,0.39567,2527.2,2526.9,45.37]
[1724981757529,0.3957,2527.0,2526.9,4.57]
[1724981757729,0.39572,2526.9,2526.8,0.00593871]
[1724981758437,3.60352,2526.9,2526.8,0.00593871]
[1724981758631,7.56112,2526.9,2526.8,0.00593871]
[1724981759937,8.55042,2526.9,2526.8,0.00593871]
[1724981760138,8.92352,2526.9,2526.8,0.00593871]
[1724981760350,7.93422,2526.9,2526.8,0.00593871]
[1724981760927,8.92352,2526.9,2526.8,0.00593871]
[1724981761238,0.39578,2526.5,2526.4,40.8]
[1724981761440,0.39578,2526.5,2526.1,4.57]
[1724981761441,3.2078,2526.5,2526.1,4.57]
[1724981761938,0.39581,2526.3,2526.2,40.8]
[1724981762138,3.2078,2526.5,2526.0,0.00593871]
[1724981762338,0.39584,2526.2,2526.0,0.00593871]
[1724981762529,0.39582,2526.3,2526.1,40.8]
[1724981762733,0.3958,2526.4,2526.1,40.8]
[1724981762931,3.2078,2526.5,2526.1,45.76584]
[1724981763135,3.2078,2526.5,2526.1,45.37]
[1724981763338,3.60359,2526.5,2526.1,45.37]
[1724981763550,0.3958,2526.4,2526.1,45.37]
[1724981763935,3.2078,2526.5,2526.1,48.5778]
[1724981764137,3.2078,2526.5,2526.4,4.9658]
[1724981764448,0.00590847,2527.3,2526.9,0.39571]
[1724981764742,0.00590847,2527.3,2527.1,4.57]
[1724981764935,0.00590847,2527.3,2527.2,40.8]
[1724981765328,0.00590847,2527.3,2527.2,44.7568]
[1724981765544,0.00590847,2527.3,2527.2,45.15247]
[1724981765741,3.2078,2527.8,2527.5,0.39561]
[1724981765942,3.2078,2527.8,2527.7,4.57]
[1724981766136,3.2078,2528.3,2527.7,11.7338]
[1724981766341,3.2078,2528.3,2528.2,4.57]
[1724981766641,3.2078,2528.3,2528.2,8.5252]
[1724981767039,3.2078,2528.3,2528.2,49.3252]
[1724981767342,3.2078,2528.3,2528.2,40.8]
[1724981767343,3.6033,2528.3,2528.2,40.8]
[1724981767837,3.2078,2528.3,2528.2,40.8]
[1724981768041,3.2078,2528.3,2528.2,44.7552]
[1724981768544,0.00593871,2528.5,2528.2,44.7552]
[1724981768736,0.00593871,2528.5,2528.3,4.57]
[1724981769134,0.40140871,2528.5,2528.3,4.57]
[1724981769534,0.3955,2528.3,2528.2,40.8]
[1724981769734,0.39553,2528.1,2528.0,0.00593871]
[1724981770035,3.60329,2528.4,2528.0,0.00593871]
[1724981770230,3.2078,2528.4,2528.0,0.00593871]
[1724981770437,0.39552,2528.2,2528.0,0.00593871]
[1724981770632,3.2078,2528.4,2528.0,0.00593871]
[1724981770838,3.60333,2528.1,2528.0,0.00593871]
[1724981771240,3.2078,2528.1,2528.0,0.00593871]
[1724981771542,3.2078,2528.1,2528.0,8.53193871]
[1724981771735,0.3955,2528.3,2528.0,8.53193871]
[1724981771933,0.3778,2528.4,2528.0,4.57593871]
[1724981772138,0.39553,2528.1,2528.0,0.00593871]
[1724981772536,3.60333,2528.1,2528.0,0.00593871]
[1724981772848,7.55933,2528.1,2528.0,0.00593871]
[1724981773444,3.60333,2528.1,2528.0,0.00593871]
[1724981774339,3.2078,2528.1,2528.0,0.00593871]
[1724981776352,0.3955,2528.3,2528.0,0.00593871]
[1724981776539,0.39552,2528.2,2528.0,0.00593871]
[1724981776835,0.39553,2528.1,2528.0,0.00593871]
[1724981778847,3.2078,2528.2,2528.0,0.00593871]
[1724981779351,0.39553,2528.1,2528.0,0.00593871]
[1724981779548,4.35073,2528.1,2528.0,0.00593871]
[1724981779845,5.33956,2528.1,2528.0,0.00593871]
[1724981780045,0.39564,2527.4,2527.3,3.2078]
[1724981780246,3.2078,2527.5,2526.7,4.57]
[1724981780439,0.39568,2527.2,2526.8,40.8]
[1724981780855,0.39569,2527.1,2526.8,40.8]
[1724981781041,0.3957,2527.0,2526.8,40.8]
[1724981781243,0.39575,2526.7,2526.6,0.00593871]
[1724981781642,4.35335,2526.7,2526.6,0.00593871]
[1724981781841,0.3776,2527.1,2526.6,0.00593871]
[1724981782042,3.21373871,2527.2,2526.7,4.96574]
[1724981782251,0.3957,2527.1,2526.7,4.9225]
[1724981782455,3.60941871,2527.2,2526.7,5.31824]
[1724981782750,3.21373871,2527.2,2527.0,4.57]
[1724981782943,0.00593871,2527.2,2527.0,8.5268]
[1724981783146,0.39561,2527.6,2527.1,4.35249]
[1724981783345,0.39562,2527.5,2527.1,0.39569]
[1724981783549,3.9694,2527.9,2527.0,4.57]
[1724981783751,3.9694,2527.9,2527.4,0.39564]
[1724981784063,0.39557,2527.9,2527.4,0.39564]
[1724981784251,0.40150871,2527.9,2527.4,0.77884]
[1724981784446,0.39558,2527.8,2527.4,0.3832]
[1724981785044,3.21373871,2527.9,2527.5,0.39562]
[1724981785253,0.00593871,2527.9,2527.5,0.39562]
[1724981785647,0.00593871,2527.9,2527.6,0.39561]
[1724981787256,0.00593871,2527.9,2527.7,40.8]
[1724981787954,0.39558,2527.8,2527.7,40.8]
[1724981788548,3.60930871,2527.9,2527.7,40.8]
[1724981789047,3.21373871,2527.9,2527.7,40.8]
[1724981789856,3.21373871,2527.9,2527.7,41.19558]
[1724981790246,0.00593871,2527.9,2527.8,0.39558]
[1724981790441,0.00593871,2527.9,2527.8,1.01279384]
[1724981790640,0.00593871,2527.9,2527.8,0.61721384]
[1724981790853,0.00593871,2527.9,2527.7,40.8]
[1724981791251,0.40149871,2527.9,2527.8,0.61723394]
[1724981791553,0.40149871,2527.9,2527.7,40.8]
[1724981791554,0.39558,2527.8,2527.7,40.8]
[1724981791741,0.39558,2527.8,2527.7,41.41740807]
[1724981792145,3.21373871,2527.9,2527.7,41.41740807]
[1724981792347,3.21373871,2527.9,2527.7,40.8]
[1724981792651,3.60929871,2527.9,2527.8,0.61739282]
[1724981792855,3.21373871,2527.9,2527.7,40.8]
[1724981793057,3.60930871,2527.9,2527.7,40.8]
[1724981793554,3.21373871,2527.9,2527.7,40.8]
[1724981793748,3.21373871,2527.9,2527.8,0.61726805]
[1724981795351,3.21373871,2527.9,2527.8,1.01284805]
[1724981796455,0.00593871,2527.9,2527.8,4.35158]
[1724981796653,0.00593871,2527.9,2527.8,4.9685782]
[1724981796955,0.00593871,2527.9,2527.8,1.90112821]
[1724981797152,0.00593871,2527.9,2527.8,5.85712821]
[1724981797456,0.00593871,2527.9,2527.8,4.9685782]
[1724981797955,0.00593871,2527.9,2527.8,4.57299433]
[1724981798347,0.00593871,2527.9,2527.8,0.61699433]
[1724981798654,0.00593871,2527.9,2527.7,41.1818]
[1724981798860,0.39562,2527.6,2527.3,4.57]
[1724981799057,0.00593871,2527.9,2527.4,0.61713968]
[1724981799252,0.3956,2527.7,2527.3,5.33135]
[1724981799454,0.00593871,2527.9,2527.4,41.41723582]
[1724981799753,3.2078,2528.0,2527.9,0.39556]
[1724981800060,3.2078,2528.0,2527.9,5.58245331]
[1724981800243,3.2078,2528.0,2527.9,4.57289331]
[1724981800446,3.2078,2528.0,2527.9,40.8]
[1724981801753,0.39552,2528.2,2527.9,40.8]
[1724981801948,0.39554,2528.1,2527.9,40.8]
[1724981802148,0.76704,2528.1,2527.9,40.8]
[1724981802349,0.39554,2528.0,2527.9,40.8]
[1724981802644,0.39558,2527.8,2527.7,0.00593871]
[1724981802956,0.98899,2527.7,2527.1,4.57]
[1724981803154,0.39569,2527.1,2526.8,4.57]
[1724981803352,0.39567,2527.2,2526.9,0.61756002]
[1724981803554,0.39569,2527.1,2526.8,4.57]
[1724981803752,0.39569,2527.1,2526.9,40.8]
[1724981803954,0.3957,2527.0,2526.9,40.8]
[1724981804451,0.39573,2526.8,2526.7,0.00593871]
[1724981804755,0.39572,2526.9,2526.7,0.00593871]
[1724981804952,0.40159871,2527.3,2526.8,40.8]
[1724981805257,0.39567,2527.2,2526.8,40.8]
[1724981805452,0.00593871,2527.3,2526.8,40.8]
[1724981806151,3.2078,2527.1,2526.8,40.8]
[1724981806552,0.39571,2527.0,2526.8,40.8]
[1724981806957,0.39572,2526.9,2526.8,40.8]
[1724981807257,0.39573,2526.8,2526.7,0.00593871]
[1724981807462,7.5246,2526.8,2526.1,0.61775544]
[1724981807669,3.6036,2526.4,2526.2,40.8]
[1724981809158,0.39576,2526.7,2526.2,40.8]
[1724981809658,3.567,2526.8,2526.2,41.19582]
[1724981809863,0.39576,2526.7,2526.3,0.6177528]
[1724981810064,3.96274,2526.8,2526.2,41.1852]
[1724981810264,0.39577,2526.6,2526.2,41.1852]
[1724981810464,3.567,2526.8,2526.3,0.61774242]
[1724981810660,0.3958,2526.4,2526.2,40.8]
[1724981810856,3.2078,2526.5,2526.2,40.8]
[1724981810857,3.60358,2526.5,2526.2,40.8]
[1724981811361,3.96274,2526.8,2526.2,41.19582]
[1724981811757,3.96274,2526.8,2526.2,40.8]
[1724981811961,3.96273,2526.8,2526.4,4.57]
[1724981812764,3.567,2526.8,2526.4,4.57]
[1724981812968,3.567,2526.8,2526.4,4.9658]
[1724981813157,3.96273,2526.8,2526.4,4.57]
[1724981814462,3.567,2526.8,2526.4,4.96579]
[1724981815263,3.96273,2526.8,2526.4,4.57]
[1724981818868,3.2078,2526.8,2526.4,4.57]
[1724981819053,0.40159871,2527.3,2526.7,4.57]
[1724981819261,0.00593871,2527.3,2526.8,0.3795]
[1724981819560,0.39569,2527.1,2526.8,0.7375]
[1724981820267,0.00593871,2527.3,2526.7,4.57]
[1724981820566,0.00593871,2527.3,2526.5,4.107]
[1724981820567,0.3957,2527.0,2526.5,4.50278]
[1724981820766,5.32543039,2527.2,2526.8,0.39573]
[1724981820767,4.33625039,2527.2,2526.8,0.39573]
[1724981821066,4.33625039,2527.2,2526.7,4.57]
[1724981821067,0.00593871,2527.3,2526.7,4.57]
[1724981821265,0.00593871,2527.3,2526.8,1.37138294]
[1724981821466,0.40160871,2527.3,2526.9,0.39572]
[1724981821669,0.00593871,2527.3,2526.9,0.39572]
[1724981821866,0.00593871,2527.3,2527.2,0.39567]
[1724981822073,0.00593871,2527.3,2527.2,4.96567]
[1724981822271,0.00593871,2527.3,2527.2,15.53979785]
[1724981822569,0.3652,2527.9,2527.4,0.39563]
[1724981822570,0.39558,2527.8,2527.4,0.39563]
[1724981822763,0.76077,2527.9,2527.4,0.39563]
[1724981822964,0.3652,2527.9,2527.5,0.39561]
[1724981823161,3.2078,2528.0,2527.5,4.57]
[1724981823363,3.2078,2528.0,2527.8,4.57]
[1724981823563,3.21373871,2528.0,2527.9,0.77386]
[1724981823763,0.00593871,2528.0,2527.9,0.3783]
[1724981823966,0.00593871,2528.0,2527.8,4.57]
[1724981824167,0.39559,2527.8,2527.5,4.95423871]
[1724981824563,0.76077,2527.9,2527.5,4.95423871]
[1724981825070,0.39559,2527.7,2527.5,0.38423871]
[1724981825377,0.39559,2527.7,2527.5,0.00593871]
[1724981825574,0.3652,2527.9,2527.5,0.00593871]
[1724981825575,0.39558,2527.8,2527.5,0.00593871]
[1724981826071,0.39561,2527.6,2527.5,0.00593871]
[1724981826462,0.39559,2527.7,2527.5,0.00593871]
[1724981826660,3.573,2527.9,2527.5,0.00593871]
[1724981826977,3.573,2527.9,2527.5,0.40155871]
[1724981827167,3.573,2527.9,2527.5,0.00593871]
[1724981827675,3.573,2527.9,2527.5,0.36343871]
[1724981827978,3.2078,2527.9,2527.6,0.3956]
[1724981828459,0.39558,2527.8,2527.5,4.93343871]
[1724981828664,3.60337,2527.9,2527.5,4.93343871]
[1724981829067,3.60337,2527.9,2527.5,4.57593871]
[1724981829369,3.60337,2527.9,2527.5,0.00593871]
[1724981829370,4.5763183,2527.8,2527.5,0.00593871]
[1724981829571,0.39561,2527.7,2527.5,0.00593871]
[1724981830075,0.39561,2527.6,2527.5,0.00593871]
[1724981830964,4.35241,2527.6,2527.5,0.00593871]
[1724981831165,0.39561,2527.6,2527.5,0.00593871]
[1724981831364,3.572,2527.8,2527.5,0.00593871]
[1724981831365,0.3956,2527.7,2527.5,0.00593871]
[1724981831570,3.96759,2527.8,2527.5,0.00593871]
[1724981832175,3.572,2527.8,2527.5,0.00593871]
[1724981832373,3.96758,2527.8,2527.5,0.00593871]
[1724981832765,0.75978,2527.8,2527.5,0.00593871]
[1724981835180,0.39561,2527.6,2527.5,0.00593871]
[1724981835383,0.3956,2527.7,2527.5,0.00593871]
[1724981835770,3.2078,2527.8,2527.5,0.40155871]
[1724981835982,3.2078,2527.8,2527.6,0.39561]
[1724981836170,3.2078,2527.8,2527.5,0.00593871]
[1724981836470,3.2078,2527.8,2527.5,0.40155871]
[1724981836670,0.00593871,2528.0,2527.7,0.39559]
[1724981837272,0.00593871,2528.0,2527.8,0.39557]
[1724981837674,0.00593871,2528.0,2527.9,0.39556]
[1724981838082,0.00593871,2528.0,2527.9,4.96857655]
[1724981838283,0.00593871,2528.0,2527.9,0.61701655]
[1724981838977,0.40147871,2528.0,2527.6,0.384]
[1724981839281,0.39556,2527.9,2527.6,0.384]
[1724981839687,0.39559,2527.8,2527.6,0.384]
[1724981839872,0.39559,2527.8,2527.5,0.00593871]
[1724981839873,0.3615,2527.8,2527.5,0.00593871]
[1724981840070,0.39561,2527.6,2527.5,0.00593871]
[1724981840673,4.35241,2527.6,2527.5,0.00593871]
[1724981840978,8.54924,2527.6,2527.5,0.00593871]
[1724981841181,7.56021,2527.6,2527.5,0.00593871]
[1724981841777,13.56021,2527.6,2527.5,0.00593871]
[1724981841977,0.39567,2527.2,2527.0,40.8]
[1724981842279,0.3628,2527.1,2527.0,40.8]
[1724981842480,0.3628,2527.1,2527.0,41.41765309]
[1724981842680,0.3628,2527.1,2527.0,41.41765317]
[1724981843380,0.3628,2527.1,2527.0,40.8]
[1724981843882,0.3628,2527.1,2527.0,41.4176531]
[1724981844383,0.76354,2527.5,2527.0,50.3401431]
[1724981844578,0.3584,2527.4,2527.1,0.6176531]
[1724981844775,0.3584,2527.4,2527.0,45.76569]
[1724981844978,0.3584,2527.4,2527.1,0.6176234]
[1724981845279,0.39562,2527.5,2527.2,0.61762296]
[1724981845483,0.39562,2527.5,2527.0,45.76569]
[1724981845683,0.39564,2527.4,2527.0,45.76569]
[1724981845979,0.39564,2527.4,2527.1,0.61756631]
[1724981846187,0.754,2527.7,2527.2,1.01322631]
[1724981846389,0.754,2527.7,2527.3,0.61756631]
[1724981846579,0.754,2527.7,2527.4,0.61756631]
[1724981846774,0.3584,2527.7,2527.2,4.57]
[1724981846984,0.3584,2527.7,2527.3,1.50666601]
[1724981847187,0.3584,2527.7,2527.4,1.37125544]
[1724981847392,0.3584,2527.7,2527.5,0.61742544]
[1724981847577,0.3584,2527.7,2527.4,0.75383]
[1724981847777,0.3584,2527.7,2527.5,0.61740488]
[1724981847980,0.3584,2527.7,2527.5,0.39562]
[1724981848179,0.3584,2527.7,2527.4,0.75383]
[1724981848375,0.3584,2527.7,2527.5,1.01303988]
[1724981848576,3.21373871,2528.0,2527.8,0.39557]
[1724981848779,0.00593871,2528.0,2527.7,0.39558]
[1724981848978,0.00593871,2528.0,2527.8,0.61721061]
[1724981849185,0.00593871,2528.0,2527.7,0.39558]
[1724981849381,0.00593871,2528.0,2527.8,1.01277206]
[1724981849586,0.00593871,2528.0,2527.9,0.39556]
[1724981849890,0.00593871,2528.0,2527.9,0.61717699]
[1724981850087,0.00593871,2528.0,2527.9,4.57317699]
[1724981850288,0.00593871,2528.0,2527.9,4.57318679]
[1724981850784,0.00593871,2528.0,2527.9,3.956]
[1724981850991,0.00593871,2528.0,2527.9,4.96875972]
[1724981851489,0.00593871,2528.0,2527.9,45.76875972]
[1724981851697,0.00593871,2528.0,2527.9,41.81275972]
[1724981852081,0.00593871,2528.0,2527.9,45.76875972]
[1724981852285,0.00593871,2528.0,2527.9,41.81275972]
[1724981852598,0.00593871,2528.0,2527.9,45.76875972]
[1724981852790,0.00593871,2528.0,2527.9,45.37319972]
[1724981852981,0.00593871,2528.0,2527.9,41.41712104]
[1724981853180,0.40147871,2528.0,2527.9,40.8]
[1724981853387,0.00593871,2528.0,2527.9,44.756]
[1724981853587,0.00593871,2528.0,2527.9,45.37303931]
[1724981853888,0.00593871,2528.0,2527.9,44.756]
[1724981854391,0.00593871,2528.0,2527.9,41.41702694]
[1724981854992,0.00593871,2528.0,2527.9,40.8]
[1724981855391,0.40147871,2528.0,2527.9,40.8]
[1724981855590,0.00593871,2528.0,2527.9,40.8]
[1724981855783,3.96193871,2528.0,2527.9,40.8]
[1724981855984,0.40147871,2528.0,2527.9,40.8]
[1724981856190,4.35747871,2528.0,2527.9,40.8]
[1724981856386,0.40147871,2528.0,2527.9,40.8]
[1724981856789,4.35747871,2528.0,2527.9,40.8]
[1724981857095,0.3956,2527.7,2527.4,3.7782]
[1724981857389,0.39559,2527.8,2527.5,42.30606538]
[1724981857585,0.39559,2527.8,2527.6,0.61716644]
[1724981857786,0.76089,2527.8,2527.7,0.61716644]
[1724981858291,0.39561,2527.6,2527.5,40.8]
[1724981858485,0.39561,2527.6,2527.5,41.41731002]
[1724981858691,0.39561,2527.6,2527.5,40.8]
[1724981858888,0.39561,2527.6,2527.5,41.41727378]
[1724981860397,0.39561,2527.6,2527.5,42.30640373]
[1724981860793,0.3957,2527.1,2526.8,4.73097753]
[1724981861004,0.3957,2527.0,2526.9,1.50698188]
[1724981861191,1.1355,2527.0,2526.9,1.50698188]
[1724981861492,11.0931,2527.0,2526.9,0.61753684]
[1724981861686,11.0931,2527.0,2526.8,0.00593871]
[1724981861687,0.39572,2526.9,2526.8,0.00593871]
[1724981862093,4.35332,2526.9,2526.8,0.62365898]
[1724981862294,15.88557139,2526.9,2526.8,0.00593871]
[1724981862495,0.3958,2526.4,2526.0,2.14989214]
[1724981862697,3.2078,2526.6,2526.1,1.50760474]
[1724981862898,3.2078,2526.6,2526.2,1.50760474]
[1724981863192,3.2078,2526.6,2526.1,40.8]
[1724981863193,0.3958,2526.4,2526.3,0.61778235]
[1724981863390,0.75729,2526.5,2526.3,1.50758847]
[1724981863592,0.75729,2526.5,2526.1,40.8]
[1724981863593,0.75729,2526.5,2526.4,0.61778235]
[1724981863791,0.3615,2526.5,2526.4,0.61778235]
[1724981863984,3.2078,2526.6,2526.4,1.50753009]
[1724981864189,3.2078,2526.6,2526.5,0.61778235]
[1724981865095,3.2078,2526.6,2526.5,0.6177445]
[1724981868193,3.2078,2526.6,2526.3,0.39581]
[1724981868395,3.2078,2526.6,2526.5,0.61772995]
[1724981868594,3.2078,2526.6,2526.4,0.61772995]
[1724981868797,0.00593871,2526.7,2526.5,1.50740597]
[1724981869002,0.00593871,2526.7,2526.6,1.50740597]
[1724981869193,0.00593871,2526.7,2526.6,5.86076597]
[1724981869497,3.2078,2527.0,2526.7,0.39574]
[1724981869702,3.2078,2527.0,2526.8,0.96932995]
[1724981869905,3.2078,2527.0,2526.9,0.61772995]
[1724981870901,3.2078,2527.0,2526.9,4.57532995]
[1724981871405,3.2078,2527.0,2526.9,3.9576]
[1724981871699,3.2078,2527.0,2526.9,45.37502007]
[1724981871898,3.2078,2527.0,2526.9,45.77070007]
[1724981872102,0.00593871,2527.2,2526.9,52.26421]
[1724981872401,0.00593871,2527.2,2527.1,0.39565]
[1724981872594,0.00593871,2527.2,2527.1,0.61742007]
[1724981872796,0.00593871,2527.2,2527.1,4.57422007]
[1724981873087,0.00593871,2527.2,2527.1,45.37422007]
[1724981874002,0.00593871,2527.2,2527.1,41.41742007]
[1724981874898,0.00593871,2527.2,2527.1,41.41698317]
[1724981875896,0.00593871,2527.2,2527.1,41.81263317]
[1724981876498,0.00593871,2527.2,2527.1,42.30570503]
[1724981876801,0.00593871,2527.2,2527.1,46.65815503]
[1724981877006,0.00593871,2527.2,2527.1,52.65815503]
[1724981877796,0.00593871,2527.2,2527.1,46.65815503]
[1724981878201,0.00593871,2527.2,2527.1,45.15245]
[1724981878396,0.00593871,2527.2,2527.1,46.26222046]
[1724981879606,0.00593871,2527.2,2527.1,49.47002046]
[1724981879802,0.00593871,2527.2,2527.1,47.9646]
[1724981880001,0.00593871,2527.2,2527.1,49.47016357]
[1724981880310,0.00593871,2527.2,2527.1,47.9646]
[1724981880511,0.40156871,2527.2,2527.1,42.30552148]
[1724981880701,0.40156871,2527.2,2526.8,5.59916992]
[1724981880702,0.39567,2527.0,2526.8,0.3516]
[1724981881007,0.39567,2527.0,2526.9,1.50537286]
[1724981881210,0.39567,2527.0,2526.9,0.61687703]
[1724981881398,0.00593871,2527.2,2526.9,1.50523346]
[1724981881714,0.00593871,2527.2,2527.1,0.39565]
[1724981882008,0.00593871,2527.2,2527.1,5.85754356]
[1724981882211,0.00593871,2527.2,2527.1,15.06534356]
[1724981883908,0.39556,2527.7,2527.1,55.46906577]
[1724981884109,0.39556,2527.7,2527.2,1.50446577]
[1724981884413,0.39556,2527.7,2527.3,1.90006577]
[1724981884620,0.39556,2527.7,2527.4,1.86636577]
[1724981884909,0.39556,2527.7,2527.5,0.61650931]
[1724981885118,3.60928871,2527.8,2527.6,0.61646383]
[1724981885414,0.39555,2527.7,2527.4,0.76342871]
[1724981885610,0.00593871,2527.8,2527.5,3.2078]
[1724981885806,0.00593871,2527.8,2527.7,0.39555]
[1724981886012,0.00593871,2527.8,2527.7,1.89973239]
[1724981886215,0.00593871,2527.8,2527.7,6.22523239]
[1724981886616,0.00593871,2527.8,2527.7,5.82968239]
[1724981886809,0.40147871,2527.8,2527.7,0.61645714]
[1724981887509,0.39555,2527.7,2527.4,0.36783871]
[1724981887710,0.39558,2527.6,2527.5,0.61641968]
[1724981887926,0.39558,2527.5,2527.4,0.00593871]
[1724981888114,0.39558,2527.5,2527.4,0.62245537]
[1724981889213,0.39558,2527.6,2527.4,0.62245537]
[1724981889418,0.7312,2527.7,2527.5,0.61646273]
[1724981889419,0.76516,2527.7,2527.5,0.61646273]
[1724981889622,0.39557,2527.6,2527.4,0.00593871]
[1724981889812,0.39557,2527.6,2527.5,0.61643893]
[1724981890013,0.3696,2527.7,2527.4,0.00593871]
[1724981890014,0.39558,2527.5,2527.4,0.00593871]
[1724981890215,4.59235,2527.5,2527.4,0.00593871]
[1724981890420,19.05722989,2527.5,2527.4,0.00593871]
[1724981890716,19.43872989,2527.5,2527.4,0.00593871]
[1724981892317,12.44975989,2527.5,2527.4,0.00593871]
[1724981892620,0.39558,2527.6,2527.4,0.00593871]
[1724981892823,0.3696,2527.7,2527.4,0.00593871]
[1724981892824,0.39558,2527.5,2527.4,0.00593871]
[1724981893013,0.39558,2527.5,2527.4,0.62240501]
[1724981894614,0.39558,2527.6,2527.4,0.62240501]
[1724981894821,0.39558,2527.6,2527.4,0.00593871]
[1724981895024,0.39558,2527.6,2527.5,0.61627992]
[1724981896919,0.76516,2527.7,2527.4,0.00593871]
[1724981897118,0.39558,2527.5,2527.4,0.00593871]
[1724981897827,0.39558,2527.6,2527.4,0.00593871]
[1724981898127,0.76516,2527.7,2527.4,0.00593871]
[1724981898327,0.76516,2527.7,2527.4,0.62195941]
[1724981898524,0.76516,2527.7,2527.5,0.6160207]
[1724981898525,0.3696,2527.7,2527.5,0.6160207]
[1724981898822,0.00593871,2527.8,2527.6,0.61587725]
[1724981899024,0.00593871,2527.8,2527.6,1.50273056]
[1724981899223,0.00593871,2527.8,2527.7,0.88676848]
[1724981899417,0.40147871,2527.8,2527.7,1.50264573]
[1724981899629,0.00593871,2527.8,2527.7,1.50264573]
[1724981900519,0.00593871,2527.8,2527.7,0.61587725]
[1724981900827,0.00593871,2527.8,2527.7,1.502603]
[1724981901031,0.00593871,2527.8,2527.7,5.854153]